Workbook

Sheet БАЗА
A1: № | B1: ТОВАР | C1: ЦЕНА ЗАКУПКИ | D1: ЦЕНА | E1: В НАЛИЧИИ | F1: СУММА
A2: 1 | B2: БЛУЗА РЕШЕЛЬЕ | C2: =Таблица1[[#This Row],[ЦЕНА]]/2 -> 1050 | D2: 2100 | E2: 1 | F2: =E2*D2 -> 2100
A3: 2 | B3: БЛУЗА ШИТЬЁ | C3: =Таблица1[[#This Row],[ЦЕНА]]/2 -> 1550 | D3: 3100 | E3: 1 | F3: =E3*D3 -> 3100
A4: 3 | B4: БЛУЗА ШИТЬЁ ЧЁРНАЯ | C4: =Таблица1[[#This Row],[ЦЕНА]]/2 -> 1250 | D4: 2500 | E4: 1 | F4: =E4*D4 -> 2500
A5: 4 | B5: БЛУЗА ШИТЬЁ ПОД ДЖИНСУ | C5: =Таблица1[[#This Row],[ЦЕНА]]/2 -> 900 | D5: 1800 | E5: 1 | F5: 1800
A6: 5 | B6: БЛУЗА ШИТЬЁ ЧЁРНАЯ ИНДОНЕЗИЯ | C6: =Таблица1[[#This Row],[ЦЕНА]]/2 -> 1400 | D6: 2800 | E6: 1 | F6: 2800
A7: 6 | B7: БЛУЗА БЕЛАЯ ДЛИН РУКАВ ИНДОНЕЗИЯ | C7: =Таблица1[[#This Row],[ЦЕНА]]/2 -> 1250 | D7: 2500 | E7: 1 | F7: 2500
A8: 7 | B8: БЛУЗА БЕЛАЯ 0196 КОРЕЯ | C8: =Таблица1[[#This Row],[ЦЕНА]]/2 -> 1025 | D8: 2050 | E8: 1 | F8: 2050
A9: 8 | B9: БЛУЗА СИНИЯ 0196 КОРЕЯ | C9: =Таблица1[[#This Row],[ЦЕНА]]/2 -> 1025 | D9: 2050 | E9: 3 | F9: 6150
A10: 9 | B10: БЛУЗА ЖЕНСКАЯ 1158 КОРЕЯ | C10: =Таблица1[[#This Row],[ЦЕНА]]/2 -> 1050 | D10: 2100 | E10: 1 | F10: 2100
A11: 10 | B11: МАЙКА ВОЛНА ЧЕРНАЯ | C11: =Таблица1[[#This Row],[ЦЕНА]]/2 -> 525 | D11: 1050 | E11: 1 | F11: 1050
A12: 11 | B12: МАЙКА ВОЛНА БЕЛАЯ | C12: 525 | D12: 1050 | E12: 1 | F12: 1050
A13: 12 | B13: КОСТЮМ РЕШЕЛЬЕ | C13: =Таблица1[[#This Row],[ЦЕНА]]/2 -> 2050 | D13: 4100 | E13: 1 | F13: 4100
A14: 13 | B14: САРАФАН РИШЕЛЬЕ | C14: =Таблица1[[#This Row],[ЦЕНА]]/2 -> 1475 | D14: 2950 | E14: 1 | F14: 2950
A15: 14 | B15: ПЛАТЬЕ 167 | C15: =Таблица1[[#This Row],[ЦЕНА]]/2 -> 1550 | D15: 3100 | E15: 1 | F15: 3100
A16: 15 | B16: ПЛАТЬЕ 7328 ШИФОН ЦВЕТОК | C16: =Таблица1[[#This Row],[ЦЕНА]]/2 -> 1550 | D16: 3100 | E16: 1 | F16: 3100
A17: 16 | B17: ПЛАТЬЕ 2439 ШИФОН | C17: =Таблица1[[#This Row],[ЦЕНА]]/2 -> 1300 | D17: 2600 | E17: 1 | F17: 2600
A18: 17 | B18: ПЛАТЬЕ ЗЕЛЕНАЯ КЛЕТКА | C18: =Таблица1[[#This Row],[ЦЕНА]]/2 -> 1250 | D18: 2500 | E18: 1 | F18: 2500
A19: 18 | B19: ПЛАТЬЕ ТУРЦИЯ ШИФОН ДЛИН РУКАВ | C19: =Таблица1[[#This Row],[ЦЕНА]]/2 -> 1800 | D19: 3600 | E19: 1 | F19: 3600
A20: 19 | B20: ПЛАТЬЕ КОСТЮМ 2024 | C20: =Таблица1[[#This Row],[ЦЕНА]]/2 -> 3300 | D20: 6600 | E20: 1 | F20: 6600
A21: 20 | B21: ПЛАТЬЕ ПУГАЧЕВА | C21: =Таблица1[[#This Row],[ЦЕНА]]/2 -> 1900 | D21: 3800 | E21: 1 | F21: 3800
A22: 21 | B22: ПЛАТЬЕ 3017 КЛЮКВА | C22: =Таблица1[[#This Row],[ЦЕНА]]/2 -> 1250 | D22: 2500 | E22: 1 | F22: 2500
A23: 22 | B23: ПЛАТЬЕ ТАТЬЯНА | C23: =Таблица1[[#This Row],[ЦЕНА]]/2 -> 1250 | D23: 2500 | E23: 1 | F23: 2500
A24: 23 | B24: ПЛАТЬЕ 2006 АБСТРАКЦИЯ | C24: =Таблица1[[#This Row],[ЦЕНА]]/2 -> 1250 | D24: 2500 | E24: 1 | F24: 2500
A25: 24 | B25: ПЛАТЬЕ ВАЛАН 2816 СИНИЕ | C25: =Таблица1[[#This Row],[ЦЕНА]]/2 -> 975 | D25: 1950 | E25: 1 | F25: 1950
A26: 25 | B26: ПЛАТЬЕ ЖАТКА КОРЕЯ | C26: =Таблица1[[#This Row],[ЦЕНА]]/2 -> 1550 | D26: 3100 | E26: 1 | F26: 3100
A27: 26 | B27: ПЛАТЬЕ 3444 КОЛЬЦО | C27: =Таблица1[[#This Row],[ЦЕНА]]/2 -> 1250 | D27: 2500 | E27: 1 | F27: 2500
A28: 27 | B28: ПЛАТЬЕ КИРГИЗИЯ БЕЖ | C28: =Таблица1[[#This Row],[ЦЕНА]]/2 -> 475 | D28: 950 | E28: 1 | F28: 950
A29: 28 | B29: ПЛАТЬЕ КИРГИЗИЯ ЗЕЛЕННОЕ | C29: =Таблица1[[#This Row],[ЦЕНА]]/2 -> 1250 | D29: 2500 | E29: 1 | F29: 2500
A30: 29 | B30: ПЛАТЬЕ САРАФАН СИНЕЕ 262 | C30: =Таблица1[[#This Row],[ЦЕНА]]/2 -> 1525 | D30: 3050 | E30: 1 | F30: 3050
A31: 30 | B31: ПЛАТЬЕ САКУРА | C31: =Таблица1[[#This Row],[ЦЕНА]]/2 -> 1675 | D31: 3350 | E31: 1 | F31: 3350
A32: 31 | B32: ПЛАТЬЕ АТЛАС ТУРЦИЯ | C32: =Таблица1[[#This Row],[ЦЕНА]]/2 -> 1900 | D32: 3800 | E32: 1 | F32: 3800
A33: 32 | B33: ПЛАТЬЕ 2040 ФУКСИЯ | C33: =Таблица1[[#This Row],[ЦЕНА]]/2 -> 1250 | D33: 2500 | E33: 1 | F33: 2500
A34: 33 | B34: ПЛАТЬЕ ВОЛНА ЧЕРНАЯ БЕЛАРУСЬ | C34: =Таблица1[[#This Row],[ЦЕНА]]/2 -> 1000 | D34: 2000 | E34: 1 | F34: 2000
A35: 34 | B35: КОСТЮМ БРЮЧНЫЙ | C35: =Таблица1[[#This Row],[ЦЕНА]]/2 -> 1125 | D35: 2250 | E35: 1 | F35: 2250
A36: 35 | B36: ЮБКА СЕРАЯ ШИФОН | C36: =Таблица1[[#This Row],[ЦЕНА]]/2 -> 750 | D36: 1500 | E36: 1 | F36: 1500
A37: 36 | B37: ЮБКА ЛЕТНЯЯ ШИФОН | C37: =Таблица1[[#This Row],[ЦЕНА]]/2 -> 625 | D37: 1250 | E37: 1 | F37: 1250
A38: 37 | B38: ЮБКА ЛЕТНЯЯ ХБ | C38: =Таблица1[[#This Row],[ЦЕНА]]/2 -> 575 | D38: 1150 | E38: 1 | F38: 1150
A39: 38 | B39: ЮБКА СТРЕЙЧ ЧЕРНАЯ | C39: =Таблица1[[#This Row],[ЦЕНА]]/2 -> 425 | D39: 850 | E39: 1 | F39: 850
A40: 39 | B40: ЮБКА ТРИКОТАЖ ТУРЦИЯ БЕЛАЯ | C40: =Таблица1[[#This Row],[ЦЕНА]]/2 -> 600 | D40: 1200 | E40: 1 | F40: 1200
A41: 40 | B41: ЮБКА РЕШЕЛЬЕ ИНДОНЕЗИЯ | C41: =Таблица1[[#This Row],[ЦЕНА]]/2 -> 1050 | D41: 2100 | E41: 1 | F41: 2100
A42: 41 | B42: БЛУЗА НИФЕРТИТИ | C42: =Таблица1[[#This Row],[ЦЕНА]]/2 -> 750 | D42: 1500 | E42: 1 | F42: 1500
A43: 42 | B43: ФУТБОЛКА ЧЕРНАЯ, КРАСНАЯ | C43: =Таблица1[[#This Row],[ЦЕНА]]/2 -> 450 | D43: 900 | E43: 1 | F43: 900
A44: 43 | B44: ФУТБОЛКА ЖЕНСКАЯ | C44: 360 | D44: 720 | E44: 1 | F44: 720
A45: 44 | B45: БЛУЗА ЖЕНСКАЯ ТУРЦИЯ | C45: =Таблица1[[#This Row],[ЦЕНА]]/2 -> 225 | D45: 450 | E45: 1 | F45: 450
A46: 45 | B46: ФУТБОЛКА ЖЕНСКАЯ | C46: 410 | D46: 820 | E46: 1 | F46: 820
A47: 46 | B47: ВОДОЛАЗКА ТИГРОВАЯ | C47: =Таблица1[[#This Row],[ЦЕНА]]/2 -> 250 | D47: 500 | E47: 1 | F47: 500
A48: 47 | B48: МАЙКА КРАСНАЯ СТРАЗЫ | C48: =Таблица1[[#This Row],[ЦЕНА]]/2 -> 425 | D48: 850 | E48: 1 | F48: 850
A49: 48 | B49: ЖЕЛЕТКА ВЯЗАННАЯ | C49: =Таблица1[[#This Row],[ЦЕНА]]/2 -> 375 | D49: 750 | E49: 1 | F49: 750
A50: 49 | B50: БЛУЗА БЛЕСТЯЩАЯ | C50: =Таблица1[[#This Row],[ЦЕНА]]/2 -> 600 | D50: 1200 | E50: 1 | F50: 1200
A51: 50 | B51: БЛУЗА ТУРЦИЯ ПОЛОСКА 0555 | C51: =Таблица1[[#This Row],[ЦЕНА]]/2 -> 1000 | D51: 2000 | E51: 1 | F51: 2000
A52: 51 | B52: БЛУЗА РОЗА | C52: =Таблица1[[#This Row],[ЦЕНА]]/2 -> 550 | D52: 1100 | E52: 1 | F52: 1100
A53: 52 | B53: БЛУЗА ЧЕРНАЯ ДЛИННЫЙ РУКАВ | C53: =Таблица1[[#This Row],[ЦЕНА]]/2 -> 450 | D53: 900 | E53: 1 | F53: 900
A54: 53 | B54: БЛУЗА ЦВЕТЫ ПОЛЬША | C54: =Таблица1[[#This Row],[ЦЕНА]]/2 -> 750 | D54: 1500 | E54: 1 | F54: 1500
A55: 54 | B55: БЛУЗА ПОЛОСКА КОРЕЯ | C55: =Таблица1[[#This Row],[ЦЕНА]]/2 -> 410 | D55: 820 | E55: 1 | F55: 820
A56: 55 | B56: ДВОЙКА ГОРОХ ТЕМНЫЙ | C56: =Таблица1[[#This Row],[ЦЕНА]]/2 -> 500 | D56: 1000 | E56: 1 | F56: 1000
A57: 56 | B57: БЛУЗА ЧЕРНАЯ СЕРЕБРО | C57: =Таблица1[[#This Row],[ЦЕНА]]/2 -> 550 | D57: 1100 | E57: 1 | F57: 1100
A58: 57 | B58: ФУТБОЛКА КИРГИЗИЯ Р60 | C58: =Таблица1[[#This Row],[ЦЕНА]]/2 -> 425 | D58: 850 | E58: 1 | F58: 850
A59: 58 | B59: БЛУЗА ХОМУТ 2002 | C59: =Таблица1[[#This Row],[ЦЕНА]]/2 -> 1150 | D59: 2300 | E59: 1 | F59: 2300
A60: 59 | B60: БЛУЗА ЧЕРНАЯ ГИПЮР ТУРЦИЯ | C60: =Таблица1[[#This Row],[ЦЕНА]]/2 -> 925 | D60: 1850 | E60: 1 | F60: 1850
A61: 60 | B61: БЛУЗА БЕЛАЯ ГИПЮР КИРГИЗИЯ | C61: =Таблица1[[#This Row],[ЦЕНА]]/2 -> 250 | D61: 500 | E61: 1 | F61: 500
A62: 61 | B62: ПИДЖАК ТЕПЛЫЙ ИНДОНЕЗИЯ | C62: =Таблица1[[#This Row],[ЦЕНА]]/2 -> 1250 | D62: 2500 | E62: 1 | F62: 2500
A63: 62 | B63: ПИДЖАК ЛИНА | C63: =Таблица1[[#This Row],[ЦЕНА]]/2 -> 550 | D63: 1100 | E63: 1 | F63: 1100
A64: 63 | B64: ЖИЛЕТКА РАЯ | C64: =Таблица1[[#This Row],[ЦЕНА]]/2 -> 700 | D64: 1400 | E64: 1 | F64: 1400
A65: 64 | B65: БЛУЗА ВИСКОЗА БЕЛИЗ | C65: =Таблица1[[#This Row],[ЦЕНА]]/2 -> 325 | D65: 650 | E65: 1 | F65: 650
A66: 65 | B66: БЛУЗА КОПЮШОН 558 | C66: =Таблица1[[#This Row],[ЦЕНА]]/2 -> 1175 | D66: 2350 | E66: 1 | F66: 2350
A67: 66 | B67: МАЙКА ТЕРАКОТ ЛИНА | C67: =Таблица1[[#This Row],[ЦЕНА]]/2 -> 400 | D67: 800 | E67: 1 | F67: 800
A68: 67 | B68: БЛУЗА 2194 | C68: =Таблица1[[#This Row],[ЦЕНА]]/2 -> 1150 | D68: 2300 | E68: 1 | F68: =E68*D68 -> 2300
A69: 68 | B69: ПОНЧО АЖУР | C69: =Таблица1[[#This Row],[ЦЕНА]]/2 -> 600 | D69: 1200 | E69: 1 | F69: 1200
A70: 69 | B70: ПОНЧО ШИФОН | C70: =Таблица1[[#This Row],[ЦЕНА]]/2 -> 625 | D70: 1250 | E70: 1 | F70: 1250
A71: 70 | B71: ВОДОЛАЗКА ШИФОН ЧЕРНАЯ | C71: =Таблица1[[#This Row],[ЦЕНА]]/2 -> 250 | D71: 500 | E71: 1 | F71: 500
A72: 71 | B72: ФУТБОЛКА ГОРОХ | C72: =Таблица1[[#This Row],[ЦЕНА]]/2 -> 250 | D72: 500 | E72: 1 | F72: 500
A73: 72 | B73: БЛУЗА ЛИНА | C73: =Таблица1[[#This Row],[ЦЕНА]]/2 -> 550 | D73: 1100 | E73: 1 | F73: 1100
A74: 73 | B74: БЛУЗА ТУРЦИЯ 2032 | C74: =Таблица1[[#This Row],[ЦЕНА]]/2 -> 750 | D74: 1500 | E74: 1 | F74: 1500
A75: 74 | B75: ТУНИКА 555 СИНЯЯ ПОЛОСКА | C75: =Таблица1[[#This Row],[ЦЕНА]]/2 -> 750 | D75: 1500 | E75: 1 | F75: 1500
A76: 75 | B76: ПИДЖАК ЗЕЛЕННЫЙ КИРГИЗИЯ | C76: =Таблица1[[#This Row],[ЦЕНА]]/2 -> 350 | D76: 700 | E76: 1 | F76: 700
A77: 76 | B77: ПИДЖАК АЖУРНЫЙ КОРЕЯ | C77: =Таблица1[[#This Row],[ЦЕНА]]/2 -> 1250 | D77: 2500 | E77: 1 | F77: 2500
A78: 77 | B78: БЛУЗА ЛЕОПАРД | C78: =Таблица1[[#This Row],[ЦЕНА]]/2 -> 550 | D78: 1100 | E78: 1 | F78: 1100
A79: 78 | B79: БЛУЗА 253 КАПЮШОН КОРИЧНЕВЫЙ | C79: =Таблица1[[#This Row],[ЦЕНА]]/2 -> 1050 | D79: 2100 | E79: 1 | F79: 2100
A80: 79 | B80: ТУНИКА ТУРЦИЯ КЛЮКВА | C80: =Таблица1[[#This Row],[ЦЕНА]]/2 -> 1600 | D80: 3200 | E80: 1 | F80: 3200
A81: 80 | B81: КАПРИ КОРЕЯ | C81: =Таблица1[[#This Row],[ЦЕНА]]/2 -> 410 | D81: 820 | E81: 1 | F81: 820
A82: 81 | B82: БРЮКИ "НАОМИ" ЧЕРНЫЕ | C82: =Таблица1[[#This Row],[ЦЕНА]]/2 -> 750 | D82: 1500 | E82: 1 | F82: 1500
A83: 82 | B83: БРЮКИ ТУРЦИЯ "ЛЕНА" | C83: =Таблица1[[#This Row],[ЦЕНА]]/2 -> 450 | D83: 900 | E83: 1 | F83: 900
A84: 83 | B84: КАРДИГАН ЧЕРНЫЙ АЖУР | C84: =Таблица1[[#This Row],[ЦЕНА]]/2 -> 410 | D84: 820 | E84: 1 | F84: 820
A85: 84 | B85: МАЙКА ФРЕНЧ | C85: =Таблица1[[#This Row],[ЦЕНА]]/2 -> 460 | D85: 920 | E85: 1 | F85: 920
A86: 85 | B86: БОЛЕРО ЧЕРНОЕ | C86: =Таблица1[[#This Row],[ЦЕНА]]/2 -> 325 | D86: 650 | E86: 1 | F86: 650
A87: 86 | B87: ТУНИКА ГАЗЕТА ТУРЦИЯ | C87: =Таблица1[[#This Row],[ЦЕНА]]/2 -> 1175 | D87: 2350 | E87: 1 | F87: 2350
A88: 87 | B88: БЛУЗА ПОЕТКИ ДЛИН РУКАВ | C88: =Таблица1[[#This Row],[ЦЕНА]]/2 -> 500 | D88: 1000 | E88: 1 | F88: 1000
A89: 88 | B89: ПЛАТЬЕ БЛЕСК | C89: =Таблица1[[#This Row],[ЦЕНА]]/2 -> 1525 | D89: 3050 | E89: 1 | F89: 3050
A90: 89 | B90: БЛУЗА 2020 ВИШНЯ ШИФОН | C90: =Таблица1[[#This Row],[ЦЕНА]]/2 -> 1350 | D90: 2700 | E90: 1 | F90: 2700
A91: 90 | B91: БЛУЗА ПОД ДЖИНСУ | C91: =Таблица1[[#This Row],[ЦЕНА]]/2 -> 750 | D91: 1500 | E91: 1 | F91: 1500
A92: 91 | B92: БЛУЗА 723 | C92: =Таблица1[[#This Row],[ЦЕНА]]/2 -> 1100 | D92: 2200 | E92: 1 | F92: 2200
A93: 92 | B93: ДВОЙКА ЖЕЛТАЯ МАРЛЕВКА | C93: =Таблица1[[#This Row],[ЦЕНА]]/2 -> 375 | D93: 750 | E93: 1 | F93: 750
A94: 93 | B94: БЛУЗА ДЛИН РУКАВ | C94: =Таблица1[[#This Row],[ЦЕНА]]/2 -> 925 | D94: 1850 | E94: 1 | F94: 1850
A95: 94 | B95: ФУТБОЛКА СТРЕЙЧ КАМЕШКИ | C95: =Таблица1[[#This Row],[ЦЕНА]]/2 -> 300 | D95: 600 | E95: 1 | F95: 600
A96: 95 | B96: БЛУЗА ШАХМАТЫ | C96: =Таблица1[[#This Row],[ЦЕНА]]/2 -> 775 | D96: 1550 | E96: 1 | F96: 1550
A97: 96 | B97: БЛУЗА ГОБИЛЕН | C97: =Таблица1[[#This Row],[ЦЕНА]]/2 -> 650 | D97: 1300 | E97: 1 | F97: 1300
A98: 97 | B98: БЛУЗА ЛУГ | C98: =Таблица1[[#This Row],[ЦЕНА]]/2 -> 925 | D98: 1850 | E98: 1 | F98: 1850
A99: 98 | B99: БЛУЗА СЕРАЯ МОСКВА | C99: =Таблица1[[#This Row],[ЦЕНА]]/2 -> 700 | D99: 1400 | E99: 1 | F99: 1400
A100: 99 | B100: ДВОЙКА ШИФОН | C100: =Таблица1[[#This Row],[ЦЕНА]]/2 -> 825 | D100: 1650 | E100: 1 | F100: 1650
A101: 100 | B101: КОМБИНИЗОН | C101: =Таблица1[[#This Row],[ЦЕНА]]/2 -> 1250 | D101: 2500 | E101: 1 | F101: 2500
A102: 101 | B102: БЛУЗА БАБОЧКА ЧЕРНАЯ | C102: =Таблица1[[#This Row],[ЦЕНА]]/2 -> 775 | D102: 1550 | E102: 1 | F102: 1550
A103: 102 | B103: БЛУЗА ИНДИАНО | C103: =Таблица1[[#This Row],[ЦЕНА]]/2 -> 725 | D103: 1450 | E103: 1 | F103: 1450
A104: 103 | B104: БЛУЗА МАКИ | C104: =Таблица1[[#This Row],[ЦЕНА]]/2 -> 1250 | D104: 2500 | E104: 1 | F104: 2500
A105: 104 | B105: БЛУЗА ШИФОН 3/4 3032 | C105: =Таблица1[[#This Row],[ЦЕНА]]/2 -> 1400 | D105: 2800 | E105: 1 | F105: 2800
A106: 105 | B106: МАЙКА АБСТРАКЦИЯ | C106: =Таблица1[[#This Row],[ЦЕНА]]/2 -> 325 | D106: 650 | E106: 1 | F106: 650
A107: 106 | B107: МАЙКА ШИФОН КРАСНАЯ | C107: =Таблица1[[#This Row],[ЦЕНА]]/2 -> 250 | D107: 500 | E107: 1 | F107: 500
A108: 107 | B108: БЛУЗА ВОЛНА | C108: =Таблица1[[#This Row],[ЦЕНА]]/2 -> 525 | D108: 1050 | E108: 1 | F108: 1050
A109: 108 | B109: МАЙКА КРЫЛО ШИФОН | C109: =Таблица1[[#This Row],[ЦЕНА]]/2 -> 525 | D109: 1050 | E109: 1 | F109: 1050
A110: 109 | B110: БЛУЗА ГАЗЕТА ВОРОТНИК | C110: =Таблица1[[#This Row],[ЦЕНА]]/2 -> 600 | D110: 1200 | E110: 1 | F110: 1200
A111: 110 | B111: ДВОЙКА КОРЕЯ КЛЮКВА | C111: =Таблица1[[#This Row],[ЦЕНА]]/2 -> 1050 | D111: 2100 | E111: 1 | F111: 2100
A112: 111 | B112: БЛУЗА ТЕРАКОТ | C112: =Таблица1[[#This Row],[ЦЕНА]]/2 -> 500 | D112: 1000 | E112: 1 | F112: 1000
A113: 112 | B113: ТУНИКА КИРГИЗИЯ ЯРКАЯ | C113: =Таблица1[[#This Row],[ЦЕНА]]/2 -> 650 | D113: 1300 | E113: 1 | F113: 1300
A114: 113 | B114: БЛУЗА КИРГИЗИЯ ДЛИН РУКАВ | C114: =Таблица1[[#This Row],[ЦЕНА]]/2 -> 450 | D114: 900 | E114: 1 | F114: 900
A115: 114 | B115: БЛУЗА КОРЕЯ ПОЛОСКА | C115: =Таблица1[[#This Row],[ЦЕНА]]/2 -> 1250 | D115: 2500 | E115: 1 | F115: 2500
A116: 115 | B116: ТУНИКА ШИФОН | C116: =Таблица1[[#This Row],[ЦЕНА]]/2 -> 900 | D116: 1800 | E116: 1 | F116: 1800
A117: 116 | B117: БЛУЗА ДЛИН РУКАВ ЗЕБРА | C117: =Таблица1[[#This Row],[ЦЕНА]]/2 -> 900 | D117: 1800 | E117: 1 | F117: 1800
A118: 117 | B118: ДВОЙКА КИРГИЗИЯ | C118: =Таблица1[[#This Row],[ЦЕНА]]/2 -> 750 | D118: 1500 | E118: 1 | F118: 1500
A119: 118 | B119: БЛУЗА ЗЕЛЕННАЯ ДЛИН РУКАВ ТУРЦИЯ | C119: =Таблица1[[#This Row],[ЦЕНА]]/2 -> 500 | D119: 1000 | E119: 1 | F119: 1000
A120: 119 | B120: БЛУЗА СЕРАЯ ДЛИН РУКАВ | C120: =Таблица1[[#This Row],[ЦЕНА]]/2 -> 450 | D120: 900 | E120: 1 | F120: 900
A121: 120 | B121: БЛУЗА 4924 ТУРЦИЯ ПОЛОСКА | C121: =Таблица1[[#This Row],[ЦЕНА]]/2 -> 1100 | D121: 2200 | E121: 1 | F121: 2200
A122: 121 | B122: ТУНИКА ТЕПЛАЯ ТУРЦИЯ | C122: =Таблица1[[#This Row],[ЦЕНА]]/2 -> 1025 | D122: 2050 | E122: 1 | F122: 2050
A123: 122 | B123: ПЛАТЬЕ НА НОЖКЕ СЕРАЯ ТУРЦИЯ | C123: =Таблица1[[#This Row],[ЦЕНА]]/2 -> 1600 | D123: 3200 | E123: 1 | F123: 3200
A124: 123 | B124: БЛУЗА СЕТКА | C124: =Таблица1[[#This Row],[ЦЕНА]]/2 -> 400 | D124: 800 | E124: 1 | F124: 800
A125: 124 | B125: ПОЯС КОРЕКЦИЯ | C125: =Таблица1[[#This Row],[ЦЕНА]]/2 -> 200 | D125: 400 | E125: 1 | F125: 400
A126: 125 | B126: БУСЫ | C126: 250 | D126: 500 | E126: 1 | F126: 500
A127: 126 | B127: ПЛАТЬЕ 1227 ТУРЦИЯ КЛЮКВА | C127: =Таблица1[[#This Row],[ЦЕНА]]/2 -> 1650 | D127: 3300 | E127: 1 | F127: 3300
A128: 127 | B128: БРЮКИ КАДРЭ | C128: =Таблица1[[#This Row],[ЦЕНА]]/2 -> 550 | D128: 1100 | E128: 1 | F128: 1100
A129: 128 | B129: ЮБКА СТРЕЙЧ ЧЁРНАЯ ГИГАНТ | C129: =Таблица1[[#This Row],[ЦЕНА]]/2 -> 475 | D129: 950 | E129: 1 | F129: 950
A130: 129 | B130: БЛУЗА ПОЛОСКА КИРГИЗИЯ Р 62 | C130: =Таблица1[[#This Row],[ЦЕНА]]/2 -> 460 | D130: 920 | E130: 1 | F130: 920
A131: 130 | B131: ПЛАТЬЕ -КОСТЮМ ТУРЦИЯ | C131: =Таблица1[[#This Row],[ЦЕНА]]/2 -> 2750 | D131: 5500 | E131: 1 | F131: 5500
A132: 131 | B132: ПЛАТЬЕ-КОСТЮМ (АЛЕКСАНДРА) | C132: 1125 | D132: 2250 | E132: 1 | F132: =E132*D132 -> 2250

Sheet Журнал МАКСИМУМ
A1: ДАТА | B1: № | C1: НАИМЕНОВАНИЕ | D1: ПРИХОД | E1: ПРОДАНО | F1: ЦЕНА | G1: СКИДКА | H1: СУММА | I1: ПРИБЫЛЬ | J1: ПЕРЕМЕЩЕНИЕ | K1: ОСТАТОК | L1: ВОЗВРАТ
A2: 2011-08-21 | B2: 3 | C2: БЛУЗА ШИТЬЁ ЧЁРНАЯ | D2: 0 | E2: 1 | F2: 2500 | G2: 0 | H2: 2500 | J2: 0 | K2: 0
